bitfinex-derivatives/quotes_BTCF0:USTF0_20250114
["timestamp","ask_amount","ask_price","bid_price","bid_amount"]
[1736894586080,0.012,96743.0,96742.0,0.06300601]
[1736894588790,0.01130294,96743.0,96742.0,0.06300601]
[1736894589292,0.01130294,96743.0,96742.0,0.42380601]
[1736894595796,0.02181095,96743.0,96742.0,0.42380601]
[1736894598288,0.01130294,96743.0,96742.0,0.42380601]
[1736894609303,0.01130294,96743.0,96742.0,0.60837337]
[1736894610201,0.01130294,96743.0,96742.0,0.42380601]
[1736894613802,0.01130294,96743.0,96742.0,0.66989582]
[1736894619104,0.01130294,96743.0,96742.0,0.42380601]
[1736894620712,0.00155082,96760.0,96759.0,0.051692]
[1736894621310,0.00155082,96760.0,96759.0,0.412492]
[1736894622005,0.01855082,96760.0,96759.0,0.414492]
[1736894622208,0.017,96760.0,96759.0,0.414492]
[1736894623016,0.014,96760.0,96759.0,0.414492]
[1736894623418,0.006,96760.0,96759.0,0.413492]
[1736894623612,0.01,96760.0,96759.0,0.413492]
[1736894625218,0.01,96760.0,96759.0,0.42387914]
[1736894628222,0.061692,96760.0,96759.0,0.052692]
[1736894628416,0.061692,96760.0,96759.0,0.001]
[1736894629613,0.004,96760.0,96751.0,0.412496]
[1736894629814,0.051696,96752.0,96751.0,0.412496]
[1736894630015,0.051696,96752.0,96751.0,0.3608]
[1736894630221,0.051696,96752.0,96751.0,0.37097975]
[1736894630825,0.051699,96747.0,96745.0,0.0517]
[1736894631022,0.051699,96746.0,96745.0,0.0517]
[1736894632220,0.051699,96746.0,96745.0,0.0527]
[1736894634721,0.052699,96746.0,96745.0,0.0527]
[1736894638730,0.052699,96746.0,96745.0,0.001]
[1736894640030,0.052699,96746.0,96740.0,0.00052]
[1736894640238,0.051708,96730.0,96729.0,0.23665409]
[1736894640433,0.051708,96730.0,96729.0,0.18494609]
[1736894640828,0.051708,96730.0,96719.0,0.18494609]
[1736894641036,0.051713,96720.0,96719.0,0.18494609]
[1736894641731,0.051713,96720.0,96719.0,0.15493823]
[1736894641931,0.051713,96720.0,96719.0,0.009]
[1736894642435,0.13520032,96729.0,96714.0,0.413036]
[1736894642626,0.052713,96720.0,96719.0,0.013]
[1736894644232,0.051713,96720.0,96719.0,0.004]
[1736894644431,0.051716,96715.0,96714.0,0.009]
[1736894644635,0.051716,96715.0,96714.0,0.014]
[1736894644837,0.051716,96715.0,96714.0,0.005]
[1736894645230,0.051716,96715.0,96702.0,0.051723]
[1736894645430,0.051716,96714.0,96703.0,0.051722]
[1736894645926,0.051716,96714.0,96699.0,0.3608]
[1736894646131,0.037716,96714.0,96704.0,0.051722]
[1736894647143,0.051723,96701.0,96700.0,0.0104055]
[1736894647331,0.051723,96701.0,96700.0,0.051724]
[1736894647526,0.042723,96701.0,96700.0,0.051724]
[1736894647935,0.039723,96701.0,96700.0,0.051724]
[1736894648640,0.041723,96701.0,96700.0,0.066724]
[1736894655631,0.041723,96701.0,96700.0,0.427524]
[1736894656639,0.041723,96701.0,96700.0,0.066724]
[1736894656842,0.041723,96701.0,96700.0,0.427524]
[1736894657041,0.041723,96701.0,96700.0,0.066724]
[1736894657241,0.041723,96701.0,96700.0,0.427524]
[1736894663053,0.041723,96701.0,96700.0,0.066724]
[1736894663242,0.041723,96701.0,96700.0,0.427524]
[1736894663745,0.041723,96701.0,96700.0,0.066724]
[1736894663950,0.041723,96701.0,96700.0,0.427524]
[1736894664643,0.041723,96701.0,96700.0,0.066724]
[1736894664842,0.041723,96701.0,96700.0,0.427524]
[1736894665042,0.041723,96701.0,96700.0,0.066724]
[1736894665237,0.041723,96701.0,96700.0,0.427524]
[1736894666253,0.041723,96701.0,96700.0,0.3758]
[1736894666547,0.041723,96701.0,96700.0,0.427524]
[1736894667947,0.040723,96701.0,96700.0,0.425524]
[1736894668339,0.040723,96701.0,96700.0,0.416524]
[1736894668340,0.039723,96701.0,96700.0,0.416524]
[1736894668649,0.040723,96701.0,96700.0,0.417524]
[1736894670051,0.040723,96701.0,96700.0,0.415524]
[1736894675644,0.040723,96701.0,96700.0,0.054724]
[1736894675849,0.040723,96701.0,96700.0,0.415524]
[1736894693071,0.040723,96701.0,96700.0,0.054724]
[1736894705282,0.040723,96701.0,96700.0,0.415524]
[1736894705987,0.040723,96701.0,96700.0,0.054724]
[1736894706188,0.040723,96701.0,96700.0,0.415524]
[1736894719600,0.040723,96701.0,96700.0,0.3638]
[1736894719996,0.040723,96701.0,96700.0,0.415524]
[1736894725307,0.040723,96701.0,96700.0,0.054724]
[1736894725509,0.040723,96701.0,96700.0,0.3638]
[1736894729818,0.040723,96701.0,96700.0,0.415524]
[1736894731722,0.040723,96701.0,96700.0,0.054724]
[1736894731917,0.040723,96701.0,96700.0,0.415524]
[1736894734325,0.040723,96701.0,96700.0,0.3638]
[1736894741816,0.05099945,96701.0,96700.0,0.3638]
[1736894748632,0.05199945,96701.0,96700.0,0.3638]
[1736894748834,0.27279945,96701.0,96700.0,0.3638]
[1736894749226,0.27279945,96701.0,96689.0,0.3608]
[1736894749227,0.051729,96690.0,96689.0,0.3608]
[1736894750423,0.051729,96690.0,96689.0,0.3648]
[1736894751028,0.051729,96690.0,96689.0,0.3608]
[1736894751219,0.051729,96690.0,96689.0,0.3628]
[1736894751431,0.051729,96690.0,96689.0,0.002]
[1736894751628,0.052729,96690.0,96689.0,0.002]
[1736894752726,0.052729,96690.0,96689.0,0.00156206]
[1736894752924,0.052729,96690.0,96689.0,0.002]
[1736894753727,0.052729,96690.0,96681.0,0.0322]
[1736894754034,0.06305509,96690.0,96689.0,0.002]
[1736894754738,0.06205509,96690.0,96689.0,0.002]
[1736894754941,0.06305509,96690.0,96689.0,0.002]
[1736894756431,0.051734,96681.0,96680.0,0.00155137]
[1736894757932,0.052734,96681.0,96680.0,0.00155137]
[1736894758126,0.052734,96681.0,96680.0,0.00455137]
[1736894762039,0.052734,96681.0,96676.0,0.37507465]
[1736894762227,0.052734,96681.0,96676.0,0.01427465]
[1736894762228,0.414534,96681.0,96676.0,0.01427465]
[1736894762428,0.414534,96681.0,96668.0,0.0333]
[1736894762429,0.272536,96677.0,96668.0,0.0333]
[1736894762634,0.05174,96669.0,96668.0,0.0333]
[1736894763435,0.04774,96669.0,96668.0,0.0333]
[1736894764841,0.04774,96669.0,96668.0,0.0353]
[1736894765541,0.04774,96669.0,96668.0,0.002]
[1736894765846,0.26854,96669.0,96668.0,0.002]
[1736894766029,0.051746,96658.0,96657.0,0.0311]
[1736894766436,0.412546,96658.0,96657.0,0.0311]
[1736894767234,0.413546,96658.0,96657.0,0.0311]
[1736894769239,0.42414405,96658.0,96657.0,0.0311]
[1736894769434,0.051747,96656.0,96655.0,0.0318]
[1736894770345,0.272547,96656.0,96655.0,0.0318]
[1736894770848,0.273547,96656.0,96655.0,0.0318]
[1736894773646,0.051753,96645.0,96644.0,0.0325]
[1736894774251,0.051753,96645.0,96644.0,0.3933]
[1736894774848,0.051753,96645.0,96644.0,0.4235]
[1736894775654,0.052753,96645.0,96644.0,0.4235]
[1736894778851,0.06298243,96645.0,96644.0,0.4235]
[1736894779056,0.06298243,96645.0,96644.0,0.475254]
[1736894780670,0.002853,96645.0,96644.0,0.475254]
[1736894780968,0.1939586,97676.0,96645.0,0.051753]
[1736894780969,0.22235209,96679.0,96645.0,0.051753]
[1736894781169,0.22235209,96679.0,96644.0,0.4235]
[1736894781170,0.051737,96675.0,96664.0,0.051743]
[1736894781373,0.051743,96665.0,96664.0,0.051743]
[1736894781668,0.051741,96671.0,96670.0,0.051738]
[1736894781866,0.22235209,96679.0,96670.0,0.412538]
[1736894782063,0.13520032,96680.0,96679.0,0.051735]
[1736894782266,0.051732,96685.0,96684.0,0.051732]
[1736894783867,0.051732,96685.0,96684.0,0.053732]
[1736894784773,0.06760016,96694.0,96684.0,0.053732]
[1736894784774,0.051729,96691.0,96690.0,0.051728]
[1736894784963,0.051729,96691.0,96690.0,0.412528]
[1736894785963,0.054729,96691.0,96690.0,0.412528]
[1736894786766,0.052729,96691.0,96690.0,0.412528]
[1736894787166,0.053729,96691.0,96690.0,0.412528]
[1736894787667,0.052729,96691.0,96690.0,0.415528]
[1736894788263,0.051729,96691.0,96690.0,0.415528]
[1736894788464,0.052729,96691.0,96690.0,0.415528]
[1736894789275,0.051729,96691.0,96690.0,0.415528]
[1736894789572,0.052729,96691.0,96690.0,0.415528]
[1736894790480,0.001,96691.0,96690.0,0.415528]
[1736894793880,0.052729,96691.0,96690.0,0.415528]
[1736894811889,0.051729,96690.0,96689.0,0.08544785]
[1736894813589,0.051729,96690.0,96681.0,0.051734]
[1736894813590,0.052729,96690.0,96681.0,0.051734]
[1736894813797,0.051733,96682.0,96681.0,0.051734]
[1736894814005,0.051733,96682.0,96678.0,0.3608]
[1736894814006,0.051735,96679.0,96678.0,0.3608]
[1736894814193,0.051735,96679.0,96677.0,0.19709713]
[1736894814194,0.051736,96678.0,96677.0,0.19709713]
[1736894814492,0.051736,96678.0,96677.0,0.04739713]
[1736894814695,0.051739,96671.0,96662.0,0.30874642]
[1736894814990,0.051744,96663.0,96662.0,0.30874642]
[1736894815995,0.051744,96663.0,96662.0,0.006]
[1736894816687,0.051744,96663.0,96662.0,0.007]
[1736894817597,0.052744,96663.0,96662.0,0.01]
[1736894818989,0.0631907,96663.0,96662.0,0.01]
[1736894827107,0.0631907,96663.0,96662.0,0.061744]
[1736894831608,0.0631907,96663.0,96662.0,0.127844]
[1736894836807,0.052744,96663.0,96662.0,0.127844]
[1736894842114,0.052744,96663.0,96662.0,0.488644]
[1736894847422,0.052744,96663.0,96662.0,0.127844]
[1736894847719,0.052744,96663.0,96662.0,0.488644]
[1736894856528,0.052744,96663.0,96662.0,0.49883769]
[1736894859230,0.001,96663.0,96662.0,0.49883769]
[1736894861631,0.001,96663.0,96662.0,0.44709369]
[1736894868042,0.01055066,96674.0,96662.0,0.44709369]
[1736894868243,0.06760016,96680.0,96673.0,0.3608]
[1736894869552,0.07780013,96680.0,96673.0,0.3608]
[1736894870445,0.001,96674.0,96673.0,0.3608]
[1736894870854,0.07880013,96680.0,96673.0,0.3668]
[1736894872444,0.01119997,96680.0,96673.0,0.3668]
[1736894880650,0.001,96680.0,96673.0,0.3668]
[1736894884561,0.001,96680.0,96673.0,0.7276]
[1736894885261,0.00155216,96683.0,96674.0,0.001]
[1736894885561,0.07786366,96700.0,96682.0,0.3608]
[1736894885761,0.07786366,96700.0,96683.0,0.0631]
[1736894886350,0.0102635,96700.0,96683.0,0.0631]
[1736894886557,0.06760016,96700.0,96683.0,0.0631]
[1736894887355,0.06760016,96700.0,96683.0,0.0651]
[1736894887965,0.06760016,96700.0,96692.0,0.3608]
[1736894889070,0.06960016,96700.0,96692.0,0.3608]
[1736894889667,0.002,96700.0,96692.0,0.3608]
[1736894890266,0.003,96700.0,96692.0,0.3608]
[1736894891465,0.001,96700.0,96684.0,0.03]
[1736894891668,0.004,96700.0,96695.0,0.3608]
[1736894892872,0.006,96700.0,96695.0,0.3608]
[1736894893777,0.006,96700.0,96696.0,0.3608]
[1736894894270,0.005,96700.0,96696.0,0.3608]
[1736894894865,0.003,96700.0,96696.0,0.3608]
[1736894895073,0.007,96700.0,96696.0,0.3608]
[1736894895761,0.008,96700.0,96696.0,0.3608]
[1736894899775,0.051724,96699.0,96696.0,0.3608]
[1736894900072,0.051724,96699.0,96698.0,0.051724]
[1736894901474,0.055724,96699.0,96698.0,0.051724]
[1736894901974,0.059724,96699.0,96698.0,0.051724]
[1736894902370,0.055724,96699.0,96698.0,0.051724]
[1736894902570,0.059724,96699.0,96698.0,0.051724]
[1736894908279,0.008,96699.0,96698.0,0.051724]
[1736894915785,0.051714,96719.0,96718.0,0.051714]
[1736894918185,0.051714,96719.0,96718.0,0.052714]
[1736894918186,0.068714,96719.0,96718.0,0.052714]
[1736894932183,0.068714,96719.0,96718.0,0.413514]
[1736894933798,0.068714,96719.0,96718.0,0.3618]
[1736894934101,0.068714,96719.0,96718.0,0.001]
[1736894934899,0.46960039,96719.0,96718.0,0.001]
[1736894936003,0.051718,96711.0,96710.0,0.051718]
[1736894936798,0.051724,96700.0,96699.0,0.051724]
[1736894936999,0.051724,96699.0,96698.0,0.00155117]
[1736894937405,0.051731,96686.0,96678.0,0.051735]
[1736894937704,0.051728,96693.0,96678.0,0.051735]
[1736894937705,0.051735,96679.0,96678.0,0.051735]
[1736894938494,0.051737,96675.0,96674.0,0.412477]
[1736894939099,0.051737,96675.0,96674.0,0.051737]
[1736894939806,0.12253437,96675.0,96674.0,0.051737]
[1736894940900,0.12253437,96675.0,96674.0,0.052737]
[1736894941107,0.053737,96675.0,96674.0,0.052737]
[1736894941399,0.053737,96675.0,96674.0,0.051737]
[1736894944407,0.12411292,96675.0,96674.0,0.051737]
[1736894945698,0.053737,96675.0,96674.0,0.051737]
[1736894947305,0.05174,96672.0,96671.0,0.051739]
[1736894948709,0.05374,96672.0,96671.0,0.051739]
[1736894952314,0.05474,96672.0,96671.0,0.051739]
[1736894954109,0.05274,96672.0,96671.0,0.051739]
[1736894954310,0.05474,96672.0,96671.0,0.051739]
[1736894956216,0.05374,96672.0,96671.0,0.051739]
[1736894956421,0.05474,96672.0,96671.0,0.051739]
[1736894958319,0.003,96672.0,96671.0,0.051739]
[1736894958815,0.051731,96687.0,96669.0,0.0314]
[1736894959017,0.06760016,96690.0,96689.0,0.05173]
[1736894959212,0.051729,96692.0,96691.0,0.051729]
[1736894960817,0.051726,96697.0,96696.0,0.051724]
[1736894962017,0.12153896,96697.0,96696.0,0.051724]
[1736894962222,0.12353896,96697.0,96696.0,0.051724]
[1736894962624,0.12153896,96697.0,96696.0,0.051724]
[1736894962816,0.12353896,96697.0,96696.0,0.051724]
[1736894963020,0.12653896,96697.0,96696.0,0.051724]
[1736894963537,0.00155176,96708.0,96691.0,0.0309]
[1736894963538,0.00155176,96708.0,96707.0,0.05172]
[1736894963825,0.14935165,96710.0,96707.0,0.41252]
[1736894964020,0.27854988,96717.0,96716.0,0.051715]
[1736894964217,0.06760016,96730.0,96720.0,0.051713]
[1736894964823,0.06760016,96730.0,96729.0,0.051708]
[1736894965024,0.41310601,96734.0,96733.0,0.051706]
[1736894965221,0.412506,96734.0,96733.0,0.051706]
[1736894966622,0.421506,96734.0,96733.0,0.052706]
[1736894967835,0.428506,96734.0,96733.0,0.053706]
[1736894971536,0.428506,96734.0,96733.0,0.002]
[1736894978944,0.428506,96734.0,96733.0,0.053706]
[1736894981447,0.3768,96734.0,96733.0,0.053706]
[1736894981742,0.016,96734.0,96733.0,0.053706]
[1736894989347,0.067706,96734.0,96733.0,0.053706]
[1736894991942,0.12763003,96734.0,96733.0,0.002]
[1736894992742,0.12763003,96734.0,96733.0,0.001]
[1736894992743,0.11863003,96734.0,96733.0,0.001]
[1736894993043,0.12763003,96734.0,96733.0,0.002]
[1736894993553,0.48843003,96734.0,96733.0,0.002]
[1736894993745,0.48843003,96734.0,96706.0,0.54622954]
[1736894993746,0.43672403,96734.0,96706.0,0.54622954]
[1736894994051,0.05172,96708.0,96707.0,0.051719]
[1736894994648,0.05172,96707.0,96706.0,0.3608]
[1736894994946,0.051722,96703.0,96702.0,0.24723938]
[1736894995252,0.051723,96701.0,96700.0,0.14427703]
[1736894995852,0.051723,96701.0,96700.0,0.00155092]
[1736894996349,0.11164703,96701.0,96700.0,0.00155092]
[1736894997355,0.051727,96694.0,96688.0,0.05173]
[1736894997857,0.051727,96694.0,96677.0,0.3917]
[1736894998046,0.051727,96694.0,96685.0,0.051732]
[1736894998644,0.11165103,96694.0,96685.0,0.051732]
[1736894999349,0.11165103,96694.0,96693.0,0.3648]
[1736895000051,0.051727,96694.0,96693.0,0.3648]
[1736895006357,0.413527,96694.0,96675.0,0.051737]
[1736895006655,0.3608,96682.0,96675.0,0.051737]
[1736895006843,0.0328,96681.0,96675.0,0.051737]
[1736895007657,0.051737,96676.0,96675.0,0.051737]
[1736895008153,0.051737,96676.0,96675.0,0.059737]
[1736895009259,0.052737,96676.0,96675.0,0.059737]
[1736895017156,0.052737,96676.0,96675.0,0.008]
[1736895021571,0.413537,96676.0,96675.0,0.008]
[1736895023161,0.052737,96676.0,96675.0,0.008]
[1736895024265,0.11269771,96676.0,96675.0,0.008]
[1736895032970,0.18871647,96676.0,96675.0,0.008]
[1736895034372,0.18871647,96676.0,96668.0,0.00155153]
[1736895034373,0.05174,96669.0,96668.0,0.00155153]
[1736895034579,0.41254,96669.0,96668.0,0.00155153]
[1736895035873,0.41354,96669.0,96668.0,0.00655153]
[1736895036078,0.54951947,96669.0,96668.0,0.00655153]
[1736895036379,0.54951947,96669.0,96668.0,0.00855153]
[1736895037080,0.54951947,96669.0,96668.0,0.00655153]
[1736895037376,0.54951947,96669.0,96668.0,0.007]
[1736895037581,0.051745,96661.0,96660.0,0.3608]
[1736895038976,0.052745,96661.0,96660.0,0.3608]
[1736895039782,0.06096683,96661.0,96659.0,0.051746]
[1736895039982,0.051745,96660.0,96659.0,0.051746]
[1736895040884,0.11171183,96660.0,96659.0,0.051746]
[1736895041275,0.14371183,96660.0,96659.0,0.051746]
[1736895041981,0.14471183,96660.0,96659.0,0.051746]
[1736895042889,0.051747,96657.0,96656.0,0.37507761]
[1736895044184,0.052747,96657.0,96656.0,0.37507761]
[1736895044482,0.053747,96657.0,96656.0,0.37507761]
[1736895050582,0.053747,96657.0,96656.0,0.01427761]
[1736895051985,0.11371658,96657.0,96656.0,0.01427761]
[1736895053492,0.11371658,96657.0,96647.0,0.051752]
[1736895053493,0.05175,96652.0,96647.0,0.051752]
[1736895053693,0.051752,96648.0,96647.0,0.051752]
[1736895055298,0.11172158,96648.0,96647.0,0.051752]
[1736895055496,0.11272158,96648.0,96647.0,0.051752]
[1736895058904,0.11272158,96648.0,96644.0,0.01047139]
[1736895058905,0.051755,96644.0,96643.0,0.051754]
[1736895060199,0.051755,96641.0,96640.0,0.3608]
[1736895060400,0.051755,96641.0,96640.0,0.412556]
[1736895060602,0.051755,96641.0,96640.0,0.3608]
[1736895061600,0.052755,96641.0,96640.0,0.3608]
[1736895062399,0.052755,96641.0,96640.0,0.412556]
[1736895062901,0.11273316,96641.0,96640.0,0.412556]
[1736895065188,0.052755,96641.0,96640.0,0.412556]
[1736895068002,0.001,96641.0,96640.0,0.412556]
[1736895070211,0.001,96641.0,96640.0,0.051756]
[1736895073516,0.06097766,96641.0,96640.0,0.051756]
[1736895078815,0.06097766,96641.0,96640.0,0.412556]
[1736895079113,0.06097766,96641.0,96640.0,0.051756]
[1736895079311,0.06097766,96641.0,96640.0,0.412556]
[1736895096231,0.06097766,96641.0,96640.0,0.051756]
[1736895096431,0.06097766,96641.0,96640.0,0.412556]
[1736895096632,0.06097766,96641.0,96640.0,0.051756]
[1736895096927,0.001,96641.0,96640.0,0.412556]
[1736895106148,0.06097417,96641.0,96640.0,0.412556]
[1736895112052,0.11272917,96641.0,96640.0,0.412556]
[1736895132060,0.27638537,96649.0,96640.0,0.412556]
[1736895132061,0.24638537,96649.0,96640.0,0.412556]
[1736895132264,0.24638537,96649.0,96648.0,0.051752]
[1736895133170,0.001,96649.0,96648.0,0.412552]
[1736895134561,0.03,96661.0,96648.0,0.412552]
[1736895134562,0.06748986,96660.0,96648.0,0.412552]
[1736895134866,0.06748986,96660.0,96659.0,0.412546]
[1736895135163,0.051745,96660.0,96659.0,0.412546]
[1736895136162,0.051745,96660.0,96659.0,0.4124759]
[1736895137359,0.053745,96660.0,96659.0,0.4124759]
[1736895139371,0.002,96660.0,96659.0,0.4124759]
[1736895141166,0.002,96660.0,96659.0,0.412546]
[1736895142467,0.002,96660.0,96659.0,0.42317604]
[1736895153478,0.0324,96660.0,96659.0,0.42317604]
[1736895153773,0.24698538,96676.0,96659.0,0.37243004]
[1736895153967,0.0302,96678.0,96677.0,0.051736]
[1736895155271,0.0304,96684.0,96683.0,0.051733]
[1736895156271,0.0599527,96684.0,96683.0,0.412533]
[1736895157272,0.0317,96695.0,96683.0,0.3710567]
[1736895157473,0.0317,96695.0,96694.0,0.412527]
[1736895160185,0.0347,96695.0,96694.0,0.412527]
[1736895160384,0.0377,96695.0,96694.0,0.412527]
[1736895163980,0.0306,96705.0,96694.0,0.412527]
[1736895164179,0.0306,96705.0,96704.0,0.412522]
[1736895165489,0.0376,96705.0,96704.0,0.412522]
[1736895166185,0.01,96705.0,96704.0,0.412522]
[1736895166698,0.007,96705.0,96704.0,0.412522]
[1736895166883,0.011,96705.0,96704.0,0.412522]
[1736895167087,0.011,96705.0,96704.0,0.42275263]
[1736895168882,0.0306,96710.0,96709.0,0.051719]
[1736895170078,0.0356,96710.0,96709.0,0.051719]
[1736895170279,0.0436,96710.0,96709.0,0.052719]
[1736895180891,0.013,96710.0,96709.0,0.413519]
[1736895181090,0.3608,96754.0,96709.0,0.3628]
[1736895181091,0.06748986,96740.0,96709.0,0.3628]
[1736895181294,0.0315,96739.0,96731.0,0.3608]
[1736895182095,0.0315,96739.0,96729.0,0.051708]
[1736895182783,0.0315,96739.0,96738.0,0.3608]
[1736895183091,0.0375,96739.0,96738.0,0.3608]
[1736895184096,0.0465,96739.0,96738.0,0.3608]
[1736895184597,0.0465,96739.0,96738.0,0.3618]
[1736895184990,0.0475,96739.0,96738.0,0.3628]
[1736895186295,0.0802,96739.0,96738.0,0.3628]
[1736895187886,0.016,96739.0,96738.0,0.3628]
[1736895188995,0.009,96739.0,96738.0,0.3618]
[1736895189188,0.012,96739.0,96738.0,0.3618]
[1736895189402,0.003,96739.0,96738.0,0.3608]
[1736895189602,0.01,96739.0,96738.0,0.3618]
[1736895194492,0.0323,96753.0,96738.0,0.3618]
[1736895194798,0.0323,96753.0,96752.0,0.051696]
[1736895195700,0.0433,96753.0,96752.0,0.051696]
[1736895196091,0.0363,96753.0,96752.0,0.051696]
[1736895196290,0.0453,96753.0,96752.0,0.052696]
[1736895197386,0.0413,96753.0,96752.0,0.052696]
[1736895197590,0.0473,96753.0,96752.0,0.053696]
[1736895209811,0.00155096,96758.0,96752.0,0.002]
[1736895210001,0.00155096,96758.0,96757.0,0.051693]
[1736895212003,0.00555096,96758.0,96757.0,0.051693]
[1736895217101,0.004,96758.0,96757.0,0.051693]
[1736895220111,0.0321,96770.0,96769.0,0.051687]
[1736895221299,0.09599685,96770.0,96769.0,0.051687]
[1736895221813,0.09599685,96770.0,96769.0,0.052687]
[1736895223605,0.0361,96770.0,96769.0,0.052687]
[1736895224912,0.0361,96770.0,96769.0,0.06323626]
[1736895232921,0.09599689,96770.0,96769.0,0.06323626]
[1736895234932,0.09599689,96770.0,96769.0,0.052687]
[1736895234933,0.14768289,96770.0,96769.0,0.052687]
[1736895236035,0.22361813,96770.0,96769.0,0.052687]
[1736895236234,0.22361813,96770.0,96769.0,0.001]
[1736895237430,0.22361813,96770.0,96766.0,0.051688]
[1736895237636,0.22361813,96770.0,96751.0,0.3608]
[1736895237936,0.051692,96764.0,96763.0,0.05169]
[1736895238136,0.3608,96767.0,96751.0,0.3608]
[1736895238332,0.051695,96755.0,96754.0,0.051695]
[1736895240738,0.11159999,96755.0,96754.0,0.051695]
[1736895242640,0.051696,96752.0,96751.0,0.3608]
[1736895243242,0.051698,96749.0,96747.0,0.14266132]
[1736895243638,0.051698,96749.0,96748.0,0.05324837]
[1736895244032,0.11160299,96749.0,96748.0,0.05324837]
[1736895248645,0.11160299,96749.0,96748.0,0.00155037]
[1736895249345,0.051705,96739.0,96738.0,0.051703]
[1736895249846,0.051706,96734.0,96733.0,0.051706]
[1736895250743,0.051707,96731.0,96730.0,0.00037]
[1736895252255,0.051707,96731.0,96730.0,0.00137]
[1736895252456,0.051707,96731.0,96730.0,0.001]
[1736895254450,0.051709,96727.0,96726.0,0.05325971]
[1736895255348,0.051707,96732.0,96731.0,0.051707]
[1736895256357,0.3608,96733.0,96727.0,0.0312]
[1736895256358,0.051705,96737.0,96736.0,0.051705]
[1736895258160,0.051705,96737.0,96736.0,0.052705]
[1736895258561,0.051705,96737.0,96736.0,0.051705]
[1736895258749,0.051705,96737.0,96736.0,0.052705]
[1736895261059,0.051702,96741.0,96740.0,0.0517]
[1736895263162,0.051702,96741.0,96740.0,0.0517]
[1736895263357,0.051702,96741.0,96740.0,0.0527]
[1736895268365,0.11161824,96741.0,96740.0,0.0527]
[1736895275068,0.11161824,96741.0,96740.0,0.0517]
[1736895275268,0.11161824,96741.0,96740.0,0.0527]
[1736895277572,0.051702,96741.0,96740.0,0.0527]
[1736895278171,0.051702,96741.0,96740.0,0.0517]
[1736895278357,0.051702,96741.0,96740.0,0.0527]
[1736895283568,0.051702,96741.0,96740.0,0.001]
[1736895284874,0.3608,96744.0,96740.0,0.001]
[1736895285477,0.051702,96741.0,96740.0,0.001]
[1736895285868,0.11162305,96741.0,96740.0,0.001]
[1736895286371,0.051709,96727.0,96726.0,0.00155071]
[1736895287972,0.412509,96727.0,96717.0,0.051715]
[1736895288161,0.051714,96718.0,96717.0,0.051715]
[1736895288678,0.051719,96710.0,96709.0,0.051719]
[1736895288884,0.051719,96710.0,96708.0,0.051719]
[1736895289676,0.051722,96704.0,96702.0,0.0332]
[1736895289976,0.051722,96704.0,96702.0,0.084922]
[1736895290772,0.051722,96704.0,96702.0,0.060722]
[1736895290972,0.051722,96704.0,96702.0,0.07111322]
[1736895292076,0.051722,96704.0,96702.0,0.07511322]
[1736895294978,0.051722,96704.0,96703.0,0.051722]
[1736895296374,0.051716,96715.0,96703.0,0.003]
[1736895296578,0.051716,96715.0,96714.0,0.051716]
[1736895298883,0.36144,96716.0,96703.0,0.012]
[1736895299185,0.051719,96710.0,96709.0,0.051718]
[1736895301973,0.051719,96710.0,96709.0,0.053718]
[1736895302479,0.051719,96710.0,96709.0,0.060718]
[1736895304373,0.051716,96715.0,96714.0,0.051716]
[1736895304885,0.051716,96715.0,96714.0,0.412516]
[1736895305693,0.051716,96715.0,96714.0,0.418516]
[1736895306177,0.051714,96720.0,96719.0,0.051713]
[1736895306373,0.051711,96725.0,96724.0,0.051709]
[1736895306980,0.001811,96725.0,96724.0,0.051709]
[1736895307180,0.051708,96731.0,96730.0,0.051707]
[1736895308682,0.06748986,96740.0,96730.0,0.051707]
[1736895308683,0.06748986,96740.0,96731.0,0.051707]
[1736895308982,0.3709462,96750.0,96731.0,0.474507]
[1736895309184,0.051698,96749.0,96745.0,0.051699]
[1736895309385,0.051698,96749.0,96731.0,0.474507]
[1736895309579,0.051698,96749.0,96746.0,0.051699]
[1736895309779,0.42888987,96750.0,96731.0,0.474507]
[1736895309780,0.00060001,96750.0,96741.0,0.3608]
[1736895309983,0.051694,96756.0,96754.0,0.051695]
[1736895310177,0.06748986,96760.0,96755.0,0.0301]
[1736895310382,0.00155072,96768.0,96755.0,0.0301]
[1736895310383,0.05169,96764.0,96759.0,0.051692]
[1736895311180,0.05169,96764.0,96760.0,0.051692]
[1736895313486,0.05169,96764.0,96760.0,0.052692]
[1736895314282,0.051691,96762.0,96760.0,0.052692]
[1736895315376,0.051691,96762.0,96760.0,0.051692]
[1736895315583,0.051691,96762.0,96760.0,0.052692]
[1736895319686,0.051688,96768.0,96767.0,0.051688]
[1736895319890,0.051684,96775.0,96769.0,0.051687]
[1736895320092,0.051685,96772.0,96769.0,0.051687]
[1736895321789,0.051685,96772.0,96769.0,0.052687]
[1736895322190,0.051685,96772.0,96769.0,0.051687]
[1736895322398,0.051685,96772.0,96769.0,0.052687]
[1736895322992,0.051686,96771.0,96769.0,0.052687]
[1736895328093,0.051686,96770.0,96769.0,0.052687]
[1736895329799,0.051686,96770.0,96769.0,0.051687]
[1736895330000,0.051685,96774.0,96772.0,0.051685]
[1736895331503,0.051685,96774.0,96772.0,0.052685]
[1736895333102,0.082485,96773.0,96772.0,0.052685]
[1736895340601,0.1423837,96773.0,96772.0,0.052685]
[1736895343813,0.051685,96773.0,96772.0,0.052685]
[1736895344009,0.051677,96788.0,96787.0,0.051676]
[1736895344711,0.36295045,96793.0,96792.0,0.051675]
[1736895344914,0.00155044,96793.0,96792.0,0.051675]
[1736895346205,0.00155044,96793.0,96792.0,0.052675]